[Event "Titled Tuesday Blitz January 04 2022"]
[White "Kamsky, Gata"]
[Black "Andreikin, Dmitry"]
[WhiteFideId "2000024"]
[BlackFideId "4158814"]
[WhiteElo "2645"]
[BlackElo "2736"]
[Result "0-1"]
[Round "08"]
[TimeControl "180+1"]
[Date "2022.01.04"]
[WhiteClock "0:00:01"]
[BlackClock "0:00:08"]

1. e4 {[%clk 0:03:00]}  c5 {[%clk 0:02:59]} 2. Nc3 {[%clk 0:02:59]}  Nc6 {[%clk 0:02:57]} 3. Nf3 {[%clk 0:02:59]}  g6 {[%clk 0:02:56]} 4. Bc4 {[%clk 0:02:57]}  Bg7 {[%clk 0:02:55]} 5. d3 {[%clk 0:02:56]}  d6 {[%clk 0:02:51]} 6. h3 {[%clk 0:02:54]}  Nf6 {[%clk 0:02:48]} 7. O-O {[%clk 0:02:54]}  O-O {[%clk 0:02:48]} 8. a3 {[%clk 0:02:54]}  a6 {[%clk 0:02:41]} 9. Bf4 {[%clk 0:02:53]}  b5 {[%clk 0:02:41]} 10. Ba2 {[%clk 0:02:52]}  h6 {[%clk 0:02:33]} 11. Qd2 {[%clk 0:02:52]}  Kh7 {[%clk 0:02:33]} 12. Rae1 {[%clk 0:02:35]}  e5 {[%clk 0:02:33]} 13. Be3 {[%clk 0:02:24]}  Be6 {[%clk 0:02:30]} 14. Bxe6 {[%clk 0:02:19]}  fxe6 {[%clk 0:02:30]} 15. Qd1 {[%clk 0:02:15]}  Nh5 {[%clk 0:02:23]} 16. g3 {[%clk 0:02:14]}  Nd4 {[%clk 0:02:18]} 17. Nh2 {[%clk 0:02:13]}  Qd7 {[%clk 0:01:56]} 18. Nb1 {[%clk 0:02:08]}  Nc6 {[%clk 0:01:44]} 19. Nd2 {[%clk 0:02:05]}  Nf4 {[%clk 0:01:37]} 20. h4 {[%clk 0:02:01]}  Qf7 {[%clk 0:01:36]} 21. Ndf3 {[%clk 0:01:56]}  Nh5 {[%clk 0:01:33]} 22. c3 {[%clk 0:01:49]}  a5 {[%clk 0:01:31]} 23. a4 {[%clk 0:01:47]}  b4 {[%clk 0:01:31]} 24. Nd2 {[%clk 0:01:46]}  Qe7 {[%clk 0:01:26]} 25. Nb3 {[%clk 0:01:31]}  Rab8 {[%clk 0:01:22]} 26. Qc2 {[%clk 0:01:20]}  Nf4 {[%clk 0:01:21]} 27. c4 {[%clk 0:01:09]}  Nh5 {[%clk 0:01:11]} 28. Kh1 {[%clk 0:01:06]}  Rf7 {[%clk 0:01:09]} 29. Rg1 {[%clk 0:01:04]}  Rbf8 {[%clk 0:01:09]} 30. Rg2 {[%clk 0:01:03]}  Nf4 {[%clk 0:01:05]} 31. Rgg1 {[%clk 0:00:54]}  Nh3 {[%clk 0:01:02]} 32. Rg2 {[%clk 0:00:53]}  Nf4 {[%clk 0:00:51]} 33. Rgg1 {[%clk 0:00:53]}  Nh3 {[%clk 0:00:49]} 34. Rg2 {[%clk 0:00:53]}  Nd4 {[%clk 0:00:48]} 35. Bxd4 {[%clk 0:00:42]}  exd4 {[%clk 0:00:49]} 36. f3 {[%clk 0:00:37]}  Be5 {[%clk 0:00:46]} 37. Rf1 {[%clk 0:00:24]}  h5 {[%clk 0:00:36]} 38. Nc1 {[%clk 0:00:19]}  Nf4 {[%clk 0:00:27]} 39. Rgf2 {[%clk 0:00:16]}  Nh3 {[%clk 0:00:24]} 40. Rg2 {[%clk 0:00:16]}  Nf4 {[%clk 0:00:25]} 41. Rgf2 {[%clk 0:00:16]}  Nxd3 {[%clk 0:00:23]} 42. Nxd3 {[%clk 0:00:15]}  Bxg3 {[%clk 0:00:24]} 43. f4 {[%clk 0:00:15]}  Qxh4 {[%clk 0:00:22]} 44. Kg1 {[%clk 0:00:11]}  e5 {[%clk 0:00:20]} 45. Nf3 {[%clk 0:00:11]}  Qg4 {[%clk 0:00:20]} 46. Ng5+ {[%clk 0:00:10]}  Kg7 {[%clk 0:00:17]} 47. Rg2 {[%clk 0:00:11]}  Rxf4 {[%clk 0:00:16]} 48. Nxf4 {[%clk 0:00:09]}  Rxf4 {[%clk 0:00:15]} 49. Qd3 {[%clk 0:00:03]}  h4 {[%clk 0:00:07]} 50. Rxf4 {[%clk 0:00:01]}  exf4 {[%clk 0:00:08]} 0-1


[Site "https://www.chess.com"]

[Event "Titled Tuesday Blitz January 04 2022"]
[White "Kravtsiv, Martyn"]
[Black "Nakamura, Hikaru"]
[WhiteFideId "14113147"]
[BlackFideId "2016192"]
[WhiteElo "2694"]
[BlackElo "2850"]
[Result "1-0"]
[Round "08"]
[TimeControl "180+1"]
[Date "2022.01.04"]
[WhiteClock "0:00:22"]
[BlackClock "0:00:19"]

1. e4 {[%clk 0:03:00]}  g6 {[%clk 0:02:56]} 2. d4 {[%clk 0:03:00]}  Bg7 {[%clk 0:02:57]} 3. Nc3 {[%clk 0:03:00]}  a6 {[%clk 0:02:57]} 4. f4 {[%clk 0:02:59]}  c6 {[%clk 0:02:57]} 5. Nf3 {[%clk 0:02:59]}  d5 {[%clk 0:02:57]} 6. e5 {[%clk 0:02:59]}  Bg4 {[%clk 0:02:56]} 7. Bd3 {[%clk 0:02:53]}  e6 {[%clk 0:02:53]} 8. O-O {[%clk 0:02:47]}  h5 {[%clk 0:02:53]} 9. h3 {[%clk 0:02:40]}  Bxf3 {[%clk 0:02:53]} 10. Qxf3 {[%clk 0:02:41]}  h4 {[%clk 0:02:54]} 11. Ne2 {[%clk 0:02:39]}  Ne7 {[%clk 0:02:54]} 12. Be3 {[%clk 0:02:37]}  Nf5 {[%clk 0:02:54]} 13. Bf2 {[%clk 0:02:37]}  Nd7 {[%clk 0:02:54]} 14. Kh1 {[%clk 0:02:37]}  Bf8 {[%clk 0:02:52]} 15. Ng1 {[%clk 0:02:35]}  Rc8 {[%clk 0:02:51]} 16. c3 {[%clk 0:02:29]}  c5 {[%clk 0:02:48]} 17. Rac1 {[%clk 0:02:26]}  cxd4 {[%clk 0:02:43]} 18. cxd4 {[%clk 0:02:25]}  Be7 {[%clk 0:02:43]} 19. Bxf5 {[%clk 0:02:23]}  gxf5 {[%clk 0:02:43]} 20. Qb3 {[%clk 0:02:23]}  b5 {[%clk 0:02:38]} 21. Nf3 {[%clk 0:02:18]}  Rc4 {[%clk 0:02:36]} 22. Qd1 {[%clk 0:02:15]}  Nf8 {[%clk 0:02:18]} 23. b3 {[%clk 0:02:13]}  Rc8 {[%clk 0:02:18]} 24. Qd2 {[%clk 0:01:55]}  Ng6 {[%clk 0:02:17]} 25. Rxc8 {[%clk 0:01:53]}  Qxc8 {[%clk 0:02:18]} 26. Rc1 {[%clk 0:01:53]}  Qb7 {[%clk 0:02:19]} 27. Be3 {[%clk 0:01:51]}  Kd7 {[%clk 0:02:18]} 28. Kg1 {[%clk 0:01:40]}  Rc8 {[%clk 0:02:16]} 29. Kf2 {[%clk 0:01:40]}  Ba3 {[%clk 0:02:14]} 30. Rxc8 {[%clk 0:01:39]}  Qxc8 {[%clk 0:02:14]} 31. Ne1 {[%clk 0:01:39]}  Be7 {[%clk 0:02:08]} 32. Qc2 {[%clk 0:01:38]}  Qg8 {[%clk 0:01:20]} 33. Nd3 {[%clk 0:01:33]}  Qa8 {[%clk 0:01:19]} 34. Ke2 {[%clk 0:01:16]}  a5 {[%clk 0:01:16]} 35. Nc5+ {[%clk 0:01:12]}  Ke8 {[%clk 0:01:17]} 36. Nd3 {[%clk 0:01:11]}  b4 {[%clk 0:01:15]} 37. Bf2 {[%clk 0:01:11]}  Qa6 {[%clk 0:01:15]} 38. Ke3 {[%clk 0:01:11]}  Nf8 {[%clk 0:01:10]} 39. Qc7 {[%clk 0:01:10]}  Nd7 {[%clk 0:01:09]} 40. g3 {[%clk 0:01:09]}  hxg3 {[%clk 0:01:07]} 41. Bxg3 {[%clk 0:01:10]}  a4 {[%clk 0:01:07]} 42. Be1 {[%clk 0:01:06]}  axb3 {[%clk 0:01:06]} 43. axb3 {[%clk 0:01:07]}  Qa1 {[%clk 0:00:58]} 44. Qc8+ {[%clk 0:01:03]}  Bd8 {[%clk 0:00:58]} 45. Bh4 {[%clk 0:00:45]}  Qg1+ {[%clk 0:00:56]} 46. Ke2 {[%clk 0:00:45]}  f6 {[%clk 0:00:25]} 47. exf6 {[%clk 0:00:44]}  Nf8 {[%clk 0:00:26]} 48. f7+ {[%clk 0:00:40]}  Kxf7 {[%clk 0:00:26]} 49. Qxd8 {[%clk 0:00:41]}  Qxd4 {[%clk 0:00:27]} 50. Qe7+ {[%clk 0:00:40]}  Kg8 {[%clk 0:00:25]} 51. Bf6 {[%clk 0:00:32]}  Qg1 {[%clk 0:00:25]} 52. Bb2 {[%clk 0:00:27]}  d4 {[%clk 0:00:25]} 53. Qg5+ {[%clk 0:00:26]}  Qxg5 {[%clk 0:00:20]} 54. fxg5 {[%clk 0:00:27]}  Kh7 {[%clk 0:00:20]} 55. Bxd4 {[%clk 0:00:26]}  Kg6 {[%clk 0:00:21]} 56. h4 {[%clk 0:00:26]}  Kh5 {[%clk 0:00:21]} 57. Bf6 {[%clk 0:00:25]}  Ng6 {[%clk 0:00:20]} 58. Nxb4 {[%clk 0:00:24]}  Kxh4 {[%clk 0:00:18]} 59. Nd3 {[%clk 0:00:24]}  Kg3 {[%clk 0:00:18]} 60. Ne5 {[%clk 0:00:24]}  Nf4+ {[%clk 0:00:19]} 61. Kd2 {[%clk 0:00:24]}  Nd5 {[%clk 0:00:19]} 62. Bd8 {[%clk 0:00:22]}  Kf4 {[%clk 0:00:19]} 63. g6 {[%clk 0:00:22]} 1-0


[Site "https://www.chess.com"]

[Event "Titled Tuesday Blitz January 04 2022"]
[White "Krivonosov, Oleg"]
[Black "Costachi, Mihnea"]
[WhiteFideId "11600349"]
[BlackFideId "1217518"]
[WhiteElo "2455"]
[BlackElo "2464"]
[Result "0-1"]
[Round "08"]
[TimeControl "180+1"]
[Date "2022.01.04"]
[WhiteClock "0:00:13"]
[BlackClock "0:00:08"]

1. Nf3 {[%clk 0:03:00]}  Nf6 {[%clk 0:02:59]} 2. c4 {[%clk 0:02:59]}  g6 {[%clk 0:02:59]} 3. Nc3 {[%clk 0:02:59]}  Bg7 {[%clk 0:02:54]} 4. e4 {[%clk 0:02:58]}  O-O {[%clk 0:02:55]} 5. d4 {[%clk 0:02:58]}  d6 {[%clk 0:02:56]} 6. Be2 {[%clk 0:02:58]}  Nbd7 {[%clk 0:02:55]} 7. O-O {[%clk 0:02:57]}  e5 {[%clk 0:02:55]} 8. Re1 {[%clk 0:02:58]}  Re8 {[%clk 0:02:54]} 9. Bf1 {[%clk 0:02:58]}  exd4 {[%clk 0:02:50]} 10. Nxd4 {[%clk 0:02:57]}  Nc5 {[%clk 0:02:50]} 11. f3 {[%clk 0:02:56]}  c6 {[%clk 0:02:51]} 12. Be3 {[%clk 0:02:56]}  d5 {[%clk 0:02:45]} 13. Nxc6 {[%clk 0:02:47]}  bxc6 {[%clk 0:02:42]} 14. Bxc5 {[%clk 0:02:46]}  dxe4 {[%clk 0:02:32]} 15. Qxd8 {[%clk 0:02:45]}  Rxd8 {[%clk 0:02:33]} 16. fxe4 {[%clk 0:02:38]}  Rb8 {[%clk 0:02:32]} 17. Rad1 {[%clk 0:02:30]}  Rxd1 {[%clk 0:02:20]} 18. Rxd1 {[%clk 0:02:31]}  Nd7 {[%clk 0:02:21]} 19. Bxa7 {[%clk 0:02:25]}  Rxb2 {[%clk 0:02:20]} 20. Bd4 {[%clk 0:02:25]}  Rc2 {[%clk 0:02:07]} 21. Bxg7 {[%clk 0:01:58]}  Kxg7 {[%clk 0:02:06]} 22. Ne2 {[%clk 0:01:58]}  Rxa2 {[%clk 0:02:00]} 23. Nd4 {[%clk 0:01:58]}  Ne5 {[%clk 0:02:00]} 24. Nf3 {[%clk 0:01:58]}  Kf6 {[%clk 0:01:47]} 25. Rd6+ {[%clk 0:01:30]}  Ke7 {[%clk 0:01:27]} 26. c5 {[%clk 0:01:27]}  Nxf3+ {[%clk 0:01:25]} 27. gxf3 {[%clk 0:01:28]}  Bd7 {[%clk 0:01:19]} 28. Rd4 {[%clk 0:01:27]}  Rc2 {[%clk 0:01:15]} 29. Rc4 {[%clk 0:01:26]}  Rd2 {[%clk 0:01:11]} 30. Rc3 {[%clk 0:01:19]}  Be6 {[%clk 0:01:07]} 31. Bc4 {[%clk 0:01:16]}  h5 {[%clk 0:01:04]} 32. h4 {[%clk 0:01:11]}  Bxc4 {[%clk 0:01:00]} 33. Rxc4 {[%clk 0:01:10]}  Ke6 {[%clk 0:01:01]} 34. Ra4 {[%clk 0:01:08]}  Rc2 {[%clk 0:00:59]} 35. Ra6 {[%clk 0:01:05]}  Rxc5 {[%clk 0:00:58]} 36. Kf2 {[%clk 0:01:05]}  f6 {[%clk 0:00:52]} 37. Ra7 {[%clk 0:01:03]}  Rc2+ {[%clk 0:00:48]} 38. Kg3 {[%clk 0:01:02]}  c5 {[%clk 0:00:38]} 39. Rg7 {[%clk 0:00:53]}  c4 {[%clk 0:00:37]} 40. Rxg6 {[%clk 0:00:53]}  Rc1 {[%clk 0:00:30]} 41. Kf4 {[%clk 0:00:47]}  Rh1 {[%clk 0:00:19]} 42. Rg8 {[%clk 0:00:47]}  Kd7 {[%clk 0:00:16]} 43. Ke3 {[%clk 0:00:42]}  Rd1 {[%clk 0:00:14]} 44. Rg2 {[%clk 0:00:37]}  Rd3+ {[%clk 0:00:12]} 45. Kf4 {[%clk 0:00:34]}  c3 {[%clk 0:00:12]} 46. Rc2 {[%clk 0:00:32]}  Ke6 {[%clk 0:00:12]} 47. Rc1 {[%clk 0:00:33]}  Kd6 {[%clk 0:00:12]} 48. Kf5 {[%clk 0:00:19]}  Rxf3+ {[%clk 0:00:12]} 49. Kg6 {[%clk 0:00:19]}  Ke5 {[%clk 0:00:11]} 50. Kxh5 {[%clk 0:00:19]}  Rg3 {[%clk 0:00:10]} 51. Kh6 {[%clk 0:00:15]}  Kxe4 {[%clk 0:00:09]} 52. h5 {[%clk 0:00:16]}  Kd3 {[%clk 0:00:09]} 53. Rf1 {[%clk 0:00:15]}  c2 {[%clk 0:00:08]} 54. Kh7 {[%clk 0:00:15]}  Kd2 {[%clk 0:00:07]} 55. Rf2+ {[%clk 0:00:14]}  Kd1 {[%clk 0:00:07]} 56. Rf1+ {[%clk 0:00:14]}  Ke2 {[%clk 0:00:08]} 57. Rh1 {[%clk 0:00:13]}  Kd2 {[%clk 0:00:07]} 58. Rh2+ {[%clk 0:00:13]}  Kc3 {[%clk 0:00:08]} 59. Rh1 {[%clk 0:00:13]}  Kb2 {[%clk 0:00:08]} 0-1


[Site "https://www.chess.com"]

[Event "Titled Tuesday Blitz January 04 2022"]
[White "Moskalenko, Alexander"]
[Black "Tsydypov, Zhamsaran"]
[WhiteFideId "4155351"]
[BlackFideId "4108566"]
[WhiteElo "2515"]
[BlackElo "2614"]
[Result "0-1"]
[Round "08"]
[TimeControl "180+1"]
[Date "2022.01.04"]
[WhiteClock "0:00:11"]
[BlackClock "0:00:33"]

1. d4 {[%clk 0:02:45]}  Nf6 {[%clk 0:02:59]} 2. c4 {[%clk 0:02:44]}  c5 {[%clk 0:02:59]} 3. d5 {[%clk 0:02:43]}  b5 {[%clk 0:02:58]} 4. Qc2 {[%clk 0:02:39]}  bxc4 {[%clk 0:02:58]} 5. Nc3 {[%clk 0:02:38]}  g6 {[%clk 0:02:57]} 6. e4 {[%clk 0:02:38]}  d6 {[%clk 0:02:58]} 7. Nf3 {[%clk 0:02:39]}  Bg7 {[%clk 0:02:58]} 8. Bxc4 {[%clk 0:02:37]}  O-O {[%clk 0:02:58]} 9. h3 {[%clk 0:02:38]}  Nbd7 {[%clk 0:02:40]} 10. O-O {[%clk 0:02:37]}  Nb6 {[%clk 0:02:41]} 11. Be2 {[%clk 0:02:36]}  e6 {[%clk 0:02:41]} 12. dxe6 {[%clk 0:02:34]}  Bxe6 {[%clk 0:02:39]} 13. Rd1 {[%clk 0:02:32]}  Qe7 {[%clk 0:02:38]} 14. Bf4 {[%clk 0:02:28]}  d5 {[%clk 0:02:37]} 15. Rac1 {[%clk 0:01:45]}  Rfc8 {[%clk 0:02:01]} 16. Ng5 {[%clk 0:01:33]}  d4 {[%clk 0:01:55]} 17. Nb5 {[%clk 0:01:31]}  Bxa2 {[%clk 0:01:29]} 18. Nd6 {[%clk 0:01:19]}  h6 {[%clk 0:01:25]} 19. Nxc8 {[%clk 0:01:15]}  Rxc8 {[%clk 0:01:25]} 20. b3 {[%clk 0:01:15]}  hxg5 {[%clk 0:01:21]} 21. Bxg5 {[%clk 0:01:16]}  Bxb3 {[%clk 0:01:15]} 22. Qxb3 {[%clk 0:01:16]}  Qxe4 {[%clk 0:01:16]} 23. Ba6 {[%clk 0:01:13]}  Rc7 {[%clk 0:01:10]} 24. Qb5 {[%clk 0:01:02]}  Qf5 {[%clk 0:01:07]} 25. Bxf6 {[%clk 0:00:57]}  Bxf6 {[%clk 0:01:07]} 26. Qe8+ {[%clk 0:00:49]}  Kg7 {[%clk 0:01:07]} 27. Bd3 {[%clk 0:00:50]}  Qd5 {[%clk 0:01:03]} 28. Qb8 {[%clk 0:00:47]}  Be5 {[%clk 0:00:59]} 29. Re1 {[%clk 0:00:42]}  c4 {[%clk 0:00:59]} 30. Be4 {[%clk 0:00:42]}  Qd6 {[%clk 0:00:58]} 31. Qe8 {[%clk 0:00:34]}  d3 {[%clk 0:00:52]} 32. Rcd1 {[%clk 0:00:27]}  Bd4 {[%clk 0:00:49]} 33. Bxd3 {[%clk 0:00:14]}  cxd3 {[%clk 0:00:49]} 34. Qe4 {[%clk 0:00:15]}  Rc3 {[%clk 0:00:37]} 35. Rf1 {[%clk 0:00:12]}  Bc5 {[%clk 0:00:36]} 36. Kh1 {[%clk 0:00:12]}  d2 {[%clk 0:00:34]} 37. Qf4 {[%clk 0:00:11]}  Qxf4 {[%clk 0:00:33]} 0-1


[Site "https://www.chess.com"]

[Event "Titled Tuesday Blitz January 04 2022"]
[White "Nesterov, Arseniy"]
[Black "Panesar Vedant"]
[WhiteFideId "24198455"]
[BlackFideId "35033018"]
[WhiteElo "2489"]
[BlackElo "1971"]
[Result "1/2-1/2"]
[Round "08"]
[TimeControl "180+1"]
[Date "2022.01.04"]
[WhiteClock "0:00:06"]
[BlackClock "0:00:35"]

1. d4 {[%clk 0:03:00]}  Nf6 {[%clk 0:02:48]} 2. c4 {[%clk 0:03:00]}  g6 {[%clk 0:02:45]} 3. Nc3 {[%clk 0:03:00]}  d5 {[%clk 0:02:46]} 4. cxd5 {[%clk 0:03:01]}  Nxd5 {[%clk 0:02:45]} 5. e4 {[%clk 0:03:01]}  Nxc3 {[%clk 0:02:45]} 6. bxc3 {[%clk 0:03:02]}  Bg7 {[%clk 0:02:45]} 7. Qa4+ {[%clk 0:03:03]}  Nd7 {[%clk 0:02:44]} 8. Nf3 {[%clk 0:03:03]}  O-O {[%clk 0:02:44]} 9. Be2 {[%clk 0:03:03]}  c5 {[%clk 0:02:44]} 10. O-O {[%clk 0:03:03]}  cxd4 {[%clk 0:02:38]} 11. cxd4 {[%clk 0:03:04]}  Nc5 {[%clk 0:02:29]} 12. dxc5 {[%clk 0:03:05]}  Bxa1 {[%clk 0:02:27]} 13. e5 {[%clk 0:03:06]}  Qd7 {[%clk 0:02:17]} 14. Qf4 {[%clk 0:02:34]}  Qf5 {[%clk 0:02:13]} 15. Qh6 {[%clk 0:02:33]}  Qh5 {[%clk 0:02:04]} 16. Qe3 {[%clk 0:01:55]}  Bg4 {[%clk 0:01:56]} 17. Ba3 {[%clk 0:01:54]}  Bxf3 {[%clk 0:01:53]} 18. Bxf3 {[%clk 0:01:55]}  Qxe5 {[%clk 0:01:54]} 19. Bxb7 {[%clk 0:01:53]}  Rac8 {[%clk 0:01:34]} 20. Bxc8 {[%clk 0:01:43]}  Rxc8 {[%clk 0:01:32]} 21. Rc1 {[%clk 0:01:13]}  Bd4 {[%clk 0:01:21]} 22. Qxe5 {[%clk 0:01:12]}  Bxe5 {[%clk 0:01:22]} 23. g3 {[%clk 0:00:52]}  Rc6 {[%clk 0:01:20]} 24. Kg2 {[%clk 0:00:50]}  f5 {[%clk 0:00:58]} 25. Rb1 {[%clk 0:00:45]}  Bd4 {[%clk 0:00:56]} 26. Rb4 {[%clk 0:00:44]}  e5 {[%clk 0:00:52]} 27. Rb8+ {[%clk 0:00:37]}  Kg7 {[%clk 0:00:50]} 28. Rb7+ {[%clk 0:00:38]}  Kh6 {[%clk 0:00:51]} 29. Rxa7 {[%clk 0:00:11]}  Bxc5 {[%clk 0:00:50]} 30. Bxc5 {[%clk 0:00:12]}  Rxc5 {[%clk 0:00:51]} 31. a4 {[%clk 0:00:11]}  Rc2 {[%clk 0:00:49]} 32. a5 {[%clk 0:00:11]}  Ra2 {[%clk 0:00:49]} 33. a6 {[%clk 0:00:11]}  e4 {[%clk 0:00:49]} 34. Kg1 {[%clk 0:00:10]}  Kg5 {[%clk 0:00:48]} 35. Rxh7 {[%clk 0:00:08]}  Rxa6 {[%clk 0:00:47]} 36. Kg2 {[%clk 0:00:09]}  Ra2 {[%clk 0:00:47]} 37. Re7 {[%clk 0:00:07]}  Kf6 {[%clk 0:00:46]} 38. Re8 {[%clk 0:00:08]}  g5 {[%clk 0:00:43]} 39. h4 {[%clk 0:00:06]}  gxh4 {[%clk 0:00:40]} 40. gxh4 {[%clk 0:00:07]}  f4 {[%clk 0:00:39]} 41. Rxe4 {[%clk 0:00:06]}  Kf5 {[%clk 0:00:40]} 42. Re8 {[%clk 0:00:05]}  Kg4 {[%clk 0:00:39]} 43. Rg8+ {[%clk 0:00:05]}  Kxh4 {[%clk 0:00:39]} 44. Kf3 {[%clk 0:00:06]}  Kh5 {[%clk 0:00:34]} 45. Rf8 {[%clk 0:00:03]}  Kg5 {[%clk 0:00:34]} 46. Rg8+ {[%clk 0:00:04]}  Kf5 {[%clk 0:00:33]} 47. Rf8+ {[%clk 0:00:05]}  Ke5 {[%clk 0:00:34]} 48. Re8+ {[%clk 0:00:05]}  Kf5 {[%clk 0:00:34]} 49. Rf8+ {[%clk 0:00:06]}  Ke5 {[%clk 0:00:35]} 50. Re8+ {[%clk 0:00:06]}  Kf5 {[%clk 0:00:35]} 51. Rf8+ {[%clk 0:00:06]} 1/2-1/2


[Site "https://www.chess.com"]

[Event "Titled Tuesday Blitz January 04 2022"]
[White "Perez Ponsa, Federico"]
[Black "Ozen, Bahadir"]
[WhiteFideId "117927"]
[BlackFideId "6337058"]
[WhiteElo "2672"]
[BlackElo "2503"]
[Result "1-0"]
[Round "08"]
[TimeControl "180+1"]
[Date "2022.01.04"]
[WhiteClock "0:00:10"]
[BlackClock "0:00:03"]

1. d4 {[%clk 0:03:00]}  d5 {[%clk 0:02:59]} 2. Nf3 {[%clk 0:03:01]}  Nf6 {[%clk 0:02:58]} 3. Bf4 {[%clk 0:03:01]}  Bf5 {[%clk 0:02:52]} 4. e3 {[%clk 0:02:58]}  e6 {[%clk 0:02:52]} 5. c4 {[%clk 0:02:58]}  Bxb1 {[%clk 0:02:52]} 6. Rxb1 {[%clk 0:02:58]}  Bb4+ {[%clk 0:02:52]} 7. Ke2 {[%clk 0:02:59]}  Bd6 {[%clk 0:02:41]} 8. Bg3 {[%clk 0:02:54]}  O-O {[%clk 0:02:40]} 9. Qc2 {[%clk 0:02:53]}  c6 {[%clk 0:02:18]} 10. Ne5 {[%clk 0:02:44]}  Ne4 {[%clk 0:02:13]} 11. f3 {[%clk 0:02:42]}  Nxg3+ {[%clk 0:02:13]} 12. hxg3 {[%clk 0:02:43]}  h6 {[%clk 0:02:13]} 13. f4 {[%clk 0:02:33]}  Nd7 {[%clk 0:02:13]} 14. Kf2 {[%clk 0:02:30]}  Nxe5 {[%clk 0:01:39]} 15. dxe5 {[%clk 0:02:25]}  Bc7 {[%clk 0:01:39]} 16. cxd5 {[%clk 0:02:18]}  exd5 {[%clk 0:01:38]} 17. Rd1 {[%clk 0:02:15]}  Qe7 {[%clk 0:01:36]} 18. Qf5 {[%clk 0:01:59]}  Qe6 {[%clk 0:01:22]} 19. Qxe6 {[%clk 0:01:52]}  fxe6 {[%clk 0:01:23]} 20. Kf3 {[%clk 0:01:52]}  Kf7 {[%clk 0:01:20]} 21. Bd3 {[%clk 0:01:45]}  Ke7 {[%clk 0:01:20]} 22. Ke2 {[%clk 0:01:41]}  a5 {[%clk 0:01:19]} 23. g4 {[%clk 0:01:41]}  a4 {[%clk 0:01:17]} 24. Rh5 {[%clk 0:01:40]}  a3 {[%clk 0:01:16]} 25. b3 {[%clk 0:01:40]}  d4 {[%clk 0:00:54]} 26. g5 {[%clk 0:01:30]}  dxe3 {[%clk 0:00:54]} 27. g3 {[%clk 0:01:20]}  hxg5 {[%clk 0:00:39]} 28. Rxg5 {[%clk 0:01:21]}  Bb6 {[%clk 0:00:29]} 29. Rxg7+ {[%clk 0:01:07]}  Rf7 {[%clk 0:00:29]} 30. Rxf7+ {[%clk 0:01:07]}  Kxf7 {[%clk 0:00:30]} 31. Rh1 {[%clk 0:01:08]}  Rg8 {[%clk 0:00:30]} 32. Kf3 {[%clk 0:01:08]}  Rd8 {[%clk 0:00:28]} 33. Rh7+ {[%clk 0:01:02]}  Kg8 {[%clk 0:00:28]} 34. Rxb7 {[%clk 0:01:03]}  Bc5 {[%clk 0:00:26]} 35. Bc4 {[%clk 0:00:59]}  Rd2 {[%clk 0:00:25]} 36. Bxe6+ {[%clk 0:00:58]}  Kh8 {[%clk 0:00:23]} 37. Bc4 {[%clk 0:00:51]}  Rf2+ {[%clk 0:00:23]} 38. Kg4 {[%clk 0:00:49]}  e2 {[%clk 0:00:23]} 39. Bxe2 {[%clk 0:00:12]}  Rxe2 {[%clk 0:00:24]} 40. b4 {[%clk 0:00:13]}  Rb2 {[%clk 0:00:24]} 41. e6 {[%clk 0:00:13]}  Rxb4 {[%clk 0:00:17]} 42. e7 {[%clk 0:00:13]}  Bxe7 {[%clk 0:00:14]} 43. Rxe7 {[%clk 0:00:14]}  Rb2 {[%clk 0:00:15]} 44. Rc7 {[%clk 0:00:10]}  Rxa2 {[%clk 0:00:11]} 45. Rxc6 {[%clk 0:00:10]}  Rg2 {[%clk 0:00:12]} 46. Ra6 {[%clk 0:00:10]}  a2 {[%clk 0:00:12]} 47. f5 {[%clk 0:00:08]}  Kg7 {[%clk 0:00:12]} 48. Kf4 {[%clk 0:00:08]}  Kf7 {[%clk 0:00:12]} 49. g4 {[%clk 0:00:08]}  Rf2+ {[%clk 0:00:12]} 50. Kg5 {[%clk 0:00:09]}  Rg2 {[%clk 0:00:08]} 51. Ra7+ {[%clk 0:00:09]}  Kg8 {[%clk 0:00:09]} 52. f6 {[%clk 0:00:09]}  Kf8 {[%clk 0:00:07]} 53. Kf5 {[%clk 0:00:09]}  Kg8 {[%clk 0:00:06]} 54. g5 {[%clk 0:00:09]}  Kh8 {[%clk 0:00:03]} 55. Kg6 {[%clk 0:00:09]}  a1=Q {[%clk 0:00:02]} 56. Rxa1 {[%clk 0:00:08]}  Rxg5+ {[%clk 0:00:01]} 57. Kxg5 {[%clk 0:00:09]}  Kh7 {[%clk 0:00:02]} 58. Ra7+ {[%clk 0:00:09]}  Kg8 {[%clk 0:00:03]} 59. Kg6 {[%clk 0:00:10]} 1-0


[Site "https://www.chess.com"]